bitfinex/quotes_BTCUSD_20250705
["timestamp","ask_amount","ask_price","bid_price","bid_amount"]
[1751728574408,0.42235986,108320.0,108310.0,0.58870857]
[1751728574636,0.41312804,108320.0,108310.0,0.58870857]
[1751728575060,0.40389631,108320.0,108310.0,0.58870857]
[1751728575237,0.41312804,108320.0,108310.0,0.58870857]
[1751728575412,0.41312804,108320.0,108310.0,0.57947641]
[1751728575612,0.42235986,108320.0,108310.0,0.57947641]
[1751728576045,0.42235986,108320.0,108310.0,0.56317641]
[1751728576668,0.42235986,108320.0,108310.0,0.57240857]
[1751728576836,0.42235986,108320.0,108310.0,0.24689193]
[1751728579755,0.41312804,108320.0,108310.0,0.24689193]
[1751728582663,0.42235986,108320.0,108310.0,0.23765977]
[1751728583598,0.41312864,108320.0,108310.0,0.22842753]
[1751728583846,0.59776674,108320.0,108310.0,0.23766028]
[1751728584083,0.60699864,108320.0,108310.0,0.22186028]
[1751728584304,0.60699864,108320.0,108310.0,0.21262795]
[1751728584533,0.59776717,108320.0,108310.0,0.22186028]
[1751728584751,0.41312907,108320.0,108310.0,0.22186028]
[1751728584949,0.41312907,108320.0,108310.0,0.22196028]
[1751728585166,0.41317907,108320.0,108310.0,0.22196028]
[1751728585390,0.91410217,108320.0,108310.0,0.18503029]
[1751728585617,0.92107044,108320.0,108310.0,0.18503029]
[1751728585842,0.92107044,108320.0,108310.0,0.19426296]
[1751728586719,0.92107044,108320.0,108310.0,0.20349554]
[1751728587593,0.92107044,108320.0,108310.0,0.19426296]
[1751728588047,0.92107044,108320.0,108310.0,0.20349554]
[1751728588270,0.92107044,108320.0,108310.0,0.18503029]
[1751728588491,0.92107044,108320.0,108310.0,0.20349571]
[1751728589119,0.92107044,108320.0,108310.0,0.21272829]
[1751728589817,0.92107044,108320.0,108310.0,0.20349571]
[1751728590041,0.91183862,108320.0,108310.0,0.20349571]
[1751728592286,0.9534229,108320.0,108310.0,0.20349571]
[1751728594772,0.944191,108320.0,108310.0,0.20349571]
[1751728597606,1.131151,108320.0,108310.0,0.21272829]
[1751728599051,1.114951,108320.0,108310.0,0.22196079]
[1751728599504,1.114951,108320.0,108310.0,0.21272829]
[1751728599860,1.114951,108320.0,108310.0,0.20349571]
[1751728600063,1.130151,108320.0,108310.0,0.20349571]
[1751728600888,1.130151,108320.0,108310.0,0.21272829]
[1751728602098,1.47196764,108320.0,108310.0,0.00037894]
[1751728607739,1.47196764,108320.0,108310.0,0.00961169]
[1751728608901,1.45566764,108320.0,108310.0,0.00961169]
[1751728614314,1.45566764,108320.0,108310.0,0.00037894]
[1751728618254,1.4557232,108320.0,108310.0,0.00037894]
[1751728620776,1.4557232,108320.0,108310.0,0.00961169]
[1751728626437,1.4557232,108320.0,108310.0,0.00037894]
[1751728631849,1.4557232,108320.0,108310.0,0.00961169]
[1751728633310,1.4405232,108320.0,108310.0,0.00961169]
[1751728636291,1.4405232,108320.0,108310.0,0.00037894]
[1751728642531,1.4570232,108320.0,108310.0,0.00037894]
[1751728646089,1.4405232,108320.0,108310.0,0.00037894]
[1751728648918,1.4566232,108320.0,108310.0,0.00037894]
[1751728649114,1.48696427,108320.0,108310.0,0.00037894]
[1751728649349,1.51471827,108320.0,108310.0,0.00037894]
[1751728649554,1.55628078,108320.0,108310.0,0.00037894]
[1751728650208,1.56277491,108320.0,108310.0,0.00037894]
[1751728652695,1.88829155,108320.0,108310.0,0.00037894]
[1751728652878,1.56277491,108320.0,108310.0,0.00037894]
[1751728659575,1.56269822,108320.0,108310.0,0.00037894]
[1751728659929,1.56269248,108320.0,108310.0,0.00037894]
[1751728665243,1.56268647,108320.0,108310.0,0.00037894]
[1751728665607,1.56268616,108320.0,108310.0,0.00037894]
[1751728665846,1.54618616,108320.0,108310.0,0.00037894]
[1751728669632,1.56258616,108320.0,108310.0,0.00037894]
[1751728670938,1.56259604,108320.0,108310.0,0.00037894]
[1751728671550,1.56259721,108320.0,108310.0,0.00037894]
[1751728677526,1.52106792,108320.0,108310.0,0.00037894]
[1751728677659,1.84658456,108320.0,108310.0,0.00037894]
[1751728677857,1.92971435,108320.0,108310.0,0.00037894]
[1751728678411,1.87429449,108320.0,108310.0,0.00037894]
[1751728678841,1.87229449,108320.0,108310.0,0.00037894]
[1751728679043,1.87629449,108320.0,108310.0,0.00037894]
[1751728679441,1.87529449,108320.0,108310.0,0.00037894]
[1751728679672,1.87729449,108320.0,108310.0,0.00037894]
[1751728683143,1.9326821,108320.0,108310.0,0.00037894]
[1751728683998,1.87729449,108320.0,108310.0,0.00037894]
[1751728684177,1.87724673,108320.0,108310.0,0.00037894]
[1751728685265,1.87724774,108320.0,108310.0,0.00037894]
[1751728687381,1.87724035,108320.0,108310.0,0.00037894]
[1751728688138,1.86084035,108320.0,108310.0,0.00037894]
[1751728692292,1.9836011,108320.0,108310.0,0.00037894]
[1751728692505,1.9992011,108320.0,108310.0,0.00037894]
[1751728693362,1.9972011,108320.0,108310.0,0.00037894]
[1751728693575,2.0002011,108320.0,108310.0,0.00037894]
[1751728694006,1.91063551,108320.0,108310.0,0.00037894]
[1751728694224,2.00014917,108320.0,108310.0,0.00037894]
[1751728694446,1.99614917,108320.0,108310.0,0.00037894]
[1751728694651,1.99614853,108320.0,108310.0,0.00037894]
[1751728695126,1.99914853,108320.0,108310.0,0.00037894]
[1751728697190,1.99914778,108320.0,108310.0,0.00037894]
[1751728699677,2.14645778,108320.0,108310.0,0.00037894]
[1751728699914,2.06343109,108320.0,108310.0,0.00037894]
[1751728700069,2.14643776,108320.0,108310.0,0.00037894]
[1751728700466,2.06343109,108320.0,108310.0,0.00037894]
[1751728701158,2.14643778,108320.0,108310.0,0.00037894]
[1751728701492,2.06343109,108320.0,108310.0,0.00037894]
[1751728703062,2.1741982,108320.0,108310.0,0.00037894]
[1751728718554,2.1585982,108320.0,108310.0,0.00037894]
[1751728720248,0.53388773,108310.0,108300.0,0.0328]
[1751728720460,1.58521673,108310.0,108300.0,0.0328]
[1751728720867,1.61297573,108310.0,108300.0,0.0328]
[1751728722424,1.61397573,108310.0,108300.0,0.0328]
[1751728723182,1.61405573,108310.0,108300.0,0.0328]
[1751728724418,1.61505573,108310.0,108300.0,0.0328]
[1751728727029,1.61506262,108310.0,108300.0,0.0328]
[1751728727504,1.61506262,108310.0,108300.0,0.002]
[1751728728040,1.61506262,108310.0,108300.0,0.0185]
[1751728728243,1.61506262,108310.0,108300.0,0.0341]
[1751728731031,1.60857015,108310.0,108300.0,0.0341]
[1751728736295,1.60857015,108310.0,108300.0,0.0342]
[1751728742031,1.60857979,108310.0,108300.0,0.0342]
[1751728747487,1.58082079,108310.0,108300.0,0.0342]
[1751728748806,1.58082079,108310.0,108300.0,0.0186]
[1751728749217,1.58081655,108310.0,108300.0,0.0186]
[1751728757964,0.92978327,108310.0,108300.0,0.0186]
[1751728758125,1.58081655,108310.0,108300.0,0.0337]
[1751728760952,1.58086655,108310.0,108300.0,0.0337]
[1751728764646,1.60862455,108310.0,108300.0,0.0337]
[1751728764871,1.42246455,108310.0,108300.0,0.0337]
[1751728765088,0.84738884,108310.0,108300.0,0.0337]
[1751728765306,1.16367298,108310.0,108300.0,0.0337]
[1751728766213,1.48918962,108310.0,108300.0,0.0337]
[1751728766650,1.16367298,108310.0,108300.0,0.0337]
[1751728767554,1.21905978,108310.0,108300.0,0.0337]
[1751728769676,1.21909978,108310.0,108300.0,0.0337]
[1751728770120,1.21909978,108310.0,108300.0,0.2183722]
[1751728770328,1.12679673,108310.0,108300.0,0.2183722]
[1751728770665,1.12679673,108310.0,108300.0,0.0337]
[1751728771221,0.94083673,108310.0,108300.0,0.0337]
[1751728771418,1.12683673,108310.0,108300.0,0.0337]
[1751728772255,1.16831886,108310.0,108300.0,0.0337]
[1751728776711,1.4938355,108310.0,108300.0,0.0337]
[1751728776927,1.53538384,108310.0,108300.0,0.0337]
[1751728793659,0.88435056,108310.0,108300.0,0.0337]
[1751728793861,1.53538384,108310.0,108300.0,0.0337]
[1751728801314,1.34942384,108310.0,108300.0,0.0337]
[1751728801534,1.53530384,108310.0,108300.0,0.0337]
[1751728806233,1.47991704,108310.0,108300.0,0.0337]
[1751728809266,1.47994268,108310.0,108300.0,0.0337]
[1751728810306,0.8289094,108310.0,108300.0,0.0337]
[1751728810499,1.47994268,108310.0,108300.0,0.0337]
[1751728815427,1.47994268,108310.0,108300.0,0.0186]
[1751728816441,1.47994268,108310.0,108300.0,0.0021]
[1751728816892,1.49614268,108310.0,108300.0,0.0021]
[1751728817106,1.51274268,108310.0,108300.0,0.0021]
[1751728817365,1.5440665,108310.0,108300.0,0.0021]
[1751728819328,1.51274268,108310.0,108300.0,0.0021]
[1751728824119,1.49614268,108310.0,108300.0,0.0021]
[1751728833693,1.47994268,108310.0,108300.0,0.0021]
[1751728841068,1.47993187,108310.0,108300.0,0.0021]
[1751728855309,1.50768887,108310.0,108300.0,0.0021]
[1751728858751,0.85665559,108310.0,108300.0,0.0021]
[1751728858968,1.50768887,108310.0,108300.0,0.0021]
[1751728866623,1.50542564,108310.0,108300.0,0.0021]
[1751728872989,1.47766864,108310.0,108300.0,0.0021]
[1751728885180,1.50542564,108310.0,108300.0,0.0021]
[1751728888288,1.50542564,108310.0,108300.0,0.0173]
[1751728892508,1.50542564,108310.0,108300.0,0.0021]
[1751728892746,0.85439236,108310.0,108300.0,0.0021]
[1751728893023,1.50542564,108310.0,108300.0,0.0021]
[1751728896793,1.50542564,108310.0,108300.0,0.0186]
[1751728905391,1.50542564,108310.0,108300.0,0.0021]
[1751728906927,1.52172564,108310.0,108300.0,0.0021]
[1751728909711,1.50542564,108310.0,108300.0,0.0021]
[1751728926600,1.59686257,108310.0,108300.0,0.0021]
[1751728926784,1.61226257,108310.0,108300.0,0.0021]
[1751728927577,1.5790196,108310.0,108300.0,0.0021]
[1751728927876,1.61226911,108310.0,108300.0,0.0021]
[1751728928950,1.98460957,108310.0,108300.0,0.0021]
[1751728930337,1.98760957,108310.0,108300.0,0.0021]
[1751728931242,1.94078575,108310.0,108300.0,0.0021]
[1751728931591,1.61526911,108310.0,108300.0,0.0021]
[1751728931794,1.61426911,108310.0,108300.0,0.0021]
[1751728932229,1.61626911,108310.0,108300.0,0.0021]
[1751728932627,1.61426911,108310.0,108300.0,0.0021]
[1751728932824,1.61626911,108310.0,108300.0,0.0021]
[1751728934073,1.94178575,108310.0,108300.0,0.0021]
[1751728935741,1.61626911,108310.0,108300.0,0.0021]
[1751728936513,0.96523583,108310.0,108300.0,0.0021]
[1751728936736,1.61626911,108310.0,108300.0,0.0021]
[1751728944161,1.60086911,108310.0,108300.0,0.0021]
[1751728950263,1.48454913,108310.0,108300.0,0.0021]
[1751728953653,1.56763471,108310.0,108300.0,0.0021]
[1751728953823,1.60086894,108310.0,108300.0,0.0021]
[1751728967800,1.92638558,108310.0,108300.0,0.0021]
[1751728971057,1.92639908,108310.0,108300.0,0.0021]
[1751728973886,1.60088244,108310.0,108300.0,0.0021]
[1751728979124,1.51779686,108310.0,108300.0,0.0021]
[1751728979954,1.8433135,108310.0,108300.0,0.0021]
[1751728980156,1.53409686,108310.0,108300.0,0.0021]
[1751728980549,1.51779686,108310.0,108300.0,0.0021]
[1751728985734,1.60091555,108310.0,108300.0,0.0021]
[1751728990925,1.60091555,108310.0,108300.0,0.0172]
[1751728996868,1.60091555,108310.0,108300.0,0.0021]
[1751729021702,1.60091555,108310.0,108300.0,0.0346]
[1751729022704,1.60067088,108310.0,108300.0,0.0346]
[1751729027653,1.60067088,108310.0,108300.0,0.0181]
[1751729027856,1.48430446,108310.0,108300.0,0.0181]
[1751729028062,1.60064959,108310.0,108300.0,0.0181]
[1751729028722,1.41476959,108310.0,108300.0,0.0338]
[1751729028863,1.60048959,108310.0,108300.0,0.0338]
[1751729029077,1.41476959,108310.0,108300.0,0.0338]
[1751729029270,1.41476959,108310.0,108300.0,0.05597589]
[1751729029520,1.60048959,108310.0,108300.0,0.05597589]
[1751729030599,1.60048959,108310.0,108300.0,0.0338]
[1751729034407,1.60048378,108310.0,108300.0,0.0338]
[1751729040137,1.60048205,108310.0,108300.0,0.0338]
[1751729042203,1.60048205,108310.0,108300.0,0.0181]
[1751729055362,1.60049159,108310.0,108300.0,0.0181]
[1751729088948,1.60049159,108310.0,108300.0,0.0021]
[1751729097170,0.94945831,108310.0,108300.0,0.0021]
[1751729097376,1.60049159,108310.0,108300.0,0.0021]
[1751729103304,0.94945831,108310.0,108300.0,0.0021]
[1751729103511,1.60049159,108310.0,108300.0,0.0021]
[1751729137563,1.48414446,108310.0,108300.0,0.0021]
[1751729137766,1.6005236,108310.0,108300.0,0.0021]
[1751729163825,1.51739564,108310.0,108300.0,0.0021]
[1751729165695,0.86636236,108310.0,108300.0,0.0021]
[1751729165940,1.51739564,108310.0,108300.0,0.0186]
[1751729173424,1.33167564,108310.0,108300.0,0.0186]
[1751729173563,1.51731564,108310.0,108300.0,0.0186]
[1751729181004,1.48955864,108310.0,108300.0,0.0186]
[1751729183428,0.83852536,108310.0,108300.0,0.0186]
[1751729183647,1.48955864,108310.0,108300.0,0.0186]
[1751729196081,1.39812171,108310.0,108300.0,0.0346]
[1751729198699,0.74708843,108310.0,108300.0,0.0346]
[1751729198913,1.39812171,108310.0,108300.0,0.0346]
[1751729207374,1.50895899,108310.0,108300.0,0.0346]
[1751729211970,1.50887723,108310.0,108300.0,0.0346]
[1751729212858,1.50887723,108310.0,108300.0,0.05777945]
[1751729214347,1.39803995,108310.0,108300.0,0.05777945]
[1751729214954,1.39803995,108310.0,108300.0,0.04177945]
[1751729215368,1.39803995,108310.0,108300.0,0.0186]
[1751729236610,1.50887723,108310.0,108300.0,0.0186]
[1751729238708,1.50887723,108310.0,108300.0,0.0021]
[1751729248439,1.89701769,108310.0,108300.0,0.0021]
[1751729249447,1.91528969,108310.0,108300.0,0.0021]
[1751729252426,1.89928969,108310.0,108300.0,0.0021]
[1751729253009,1.57377305,108310.0,108300.0,0.0021]
[1751729253843,1.66520998,108310.0,108300.0,0.0021]
[1751729254034,2.00672662,108310.0,108300.0,0.0021]
[1751729255890,1.68120998,108310.0,108300.0,0.0021]
[1751729258091,2.00672662,108310.0,108300.0,0.0021]
[1751729259524,1.52595555,108300.0,108290.0,0.0032721]
[1751729259738,1.83628366,108300.0,108290.0,0.0032721]
[1751729259916,1.94712094,108300.0,108290.0,0.0032721]
[1751729260360,1.97488194,108300.0,108290.0,0.0032721]
[1751729261223,1.97788194,108300.0,108290.0,0.0032721]
[1751729262207,1.86704466,108300.0,108290.0,0.0032721]
[1751729267139,1.9500489,108300.0,108290.0,0.0032721]
[1751729269571,1.93449632,108300.0,108290.0,0.0032721]
[1751729269992,1.93449632,108300.0,108290.0,0.0033721]
[1751729270214,1.93454632,108300.0,108290.0,0.0033721]
[1751729278649,1.94964632,108300.0,108290.0,0.0033721]
[1751729280980,0.9730964,108300.0,108290.0,0.0033721]
[1751729281186,1.94964632,108300.0,108290.0,0.0033721]
[1751729282170,1.86664208,108300.0,108290.0,0.0033721]
[1751729283758,0.89009216,108300.0,108290.0,0.0033721]
[1751729283954,1.86664208,108300.0,108290.0,0.0033721]
[1751729286457,1.85154208,108300.0,108290.0,0.0033721]
[1751729287257,1.96237936,108300.0,108290.0,0.0033721]
[1751729289263,0.19392355,108290.0,108280.0,0.03111049]
[1751729289467,1.1469285,108290.0,108280.0,0.03111049]
[1751729289926,1.1746915,108290.0,108280.0,0.03111049]
[1751729290743,1.1746915,108290.0,108280.0,0.03211049]
[1751729293210,1.6630915,108290.0,108280.0,0.03211049]
[1751729300540,1.54675983,108290.0,108280.0,0.03211049]
[1751729300742,1.6631462,108290.0,108280.0,0.03211049]
[1751729310198,1.6353832,108290.0,108280.0,0.03211049]
[1751729313160,1.69080555,108290.0,108280.0,0.03211049]
[1751729313370,1.69080555,108290.0,108280.0,0.03221049]
[1751729313577,1.69085555,108290.0,108280.0,0.03221049]
[1751729324866,1.69085019,108290.0,108280.0,0.03221049]
[1751729330491,1.69085019,108290.0,108280.0,0.01701049]
[1751729340171,1.69085251,108290.0,108280.0,0.01701049]
[1751729346107,1.69085624,108290.0,108280.0,0.01701049]
[1751729361785,1.69085624,108290.0,108280.0,0.00161049]
[1751729361962,1.63543389,108290.0,108280.0,0.00161049]
[1751729375697,1.69085649,108290.0,108280.0,0.00161049]
[1751729379000,1.51445069,108290.0,108280.0,0.00161049]
[1751729379332,1.70005069,108290.0,108280.0,0.03361049]
[1751729381533,1.64462809,108290.0,108280.0,0.03361049]
[1751729383937,1.64462809,108290.0,108280.0,0.01721049]
[1751729384105,1.64462809,108290.0,108280.0,0.00161049]
[1751729401393,1.7000561,108290.0,108280.0,0.00161049]
[1751729401990,1.64462809,108290.0,108280.0,0.00161049]
[1751729411040,1.70004323,108290.0,108280.0,0.00161049]
[1751729420623,1.64462809,108290.0,108280.0,0.00161049]
[1751729421390,1.64462809,108290.0,108280.0,0.00061049]
[1751729421575,1.64562809,108290.0,108280.0,0.00061049]
[1751729422204,1.64662809,108290.0,108280.0,0.00061049]
[1751729424355,1.70204782,108290.0,108280.0,0.00061049]
[1751729424514,1.64662809,108290.0,108280.0,0.00061049]
[1751729429358,0.99559481,108290.0,108280.0,0.00061049]
[1751729429583,1.64662809,108290.0,108280.0,0.00061049]
[1751729439739,1.64656677,108290.0,108280.0,0.00061049]
[1751729447705,0.86537053,108290.0,108280.0,0.23468682]
[1751729447867,1.33489308,108290.0,108280.0,0.27972576]
[1751729448074,1.29331405,108290.0,108280.0,0.27972584]
[1751729448898,1.29231405,108290.0,108280.0,0.27972584]
[1751729449108,1.29231405,108290.0,108280.0,0.28072584]
[1751729449109,1.29131405,108290.0,108280.0,0.28072584]
[1751729450370,1.33287792,108290.0,108280.0,0.28072584]
[1751729451312,1.33287792,108290.0,108280.0,0.27149079]
[1751729451722,1.32364372,108290.0,108280.0,0.27149079]
[1751729451943,1.32364372,108290.0,108280.0,0.28072619]
[1751729453099,1.32364372,108290.0,108280.0,0.23568734]
[1751729453307,1.31447075,108290.0,108280.0,0.23568734]
[1751729453509,1.31447075,108290.0,108280.0,0.03251049]
[1751729455947,1.63998739,108290.0,108280.0,0.03251049]
[1751729457864,1.31447075,108290.0,108280.0,0.03251049]
[1751729461407,1.63997983,108290.0,108280.0,0.03251049]
[1751729462908,1.45441983,108290.0,108280.0,0.03251049]
[1751729463112,0.98894655,108290.0,108280.0,0.03251049]
[1751729463309,1.63997983,108290.0,108280.0,0.04945184]
[1751729463951,0.98894655,108290.0,108280.0,0.04945184]
[1751729464157,1.63997983,108290.0,108280.0,0.04945184]
[1751729467132,1.63997983,108290.0,108280.0,0.03251049]
[1751729467345,1.63997761,108290.0,108280.0,0.03251049]
[1751729467655,0.98894433,108290.0,108280.0,0.03251049]
[1751729467965,1.63997761,108290.0,108280.0,0.03251049]
[1751729469516,1.63998013,108290.0,108280.0,0.03251049]
[1751729472493,1.59841871,108290.0,108280.0,0.03251049]
[1751729474262,1.59841871,108290.0,108280.0,0.05917886]
[1751729496588,1.59841871,108290.0,108280.0,0.03251049]
[1751729499640,0.94738543,108290.0,108280.0,0.2172168]
[1751729499839,1.60765317,108290.0,108280.0,0.22645211]
[1751729500043,1.64923915,108290.0,108280.0,0.23568725]
[1751729500237,1.64923915,108290.0,108280.0,0.22645211]
[1751729500445,1.64923915,108290.0,108280.0,0.23568734]
[1751729502517,0.96270694,108290.0,108280.0,0.29929606]
[1751729502724,1.16669475,108290.0,108280.0,0.29006126]
[1751729502928,1.16669475,108290.0,108280.0,0.30853077]
[1751729503136,1.15746046,108290.0,108280.0,0.30853077]
[1751729503358,1.16669466,108290.0,108280.0,0.2633919]
[1751729503575,1.10202342,108290.0,108280.0,0.2633919]
[1751729504405,0.7580388,108290.0,108280.0,0.2633919]
[1751729504625,0.76727266,108290.0,108280.0,0.2633919]
[1751729504834,0.5725188,108290.0,108280.0,0.35482883]
[1751729505058,0.90726922,108290.0,108280.0,0.4091112]
[1751729505259,0.91650325,108290.0,108280.0,0.4091112]
[1751729505458,0.90726922,108290.0,108280.0,0.4091112]
[1751729505671,0.91650317,108290.0,108280.0,0.4091112]
[1751729507407,0.92573729,108290.0,108280.0,0.4091112]
[1751729508050,0.93497166,108290.0,108280.0,0.39987649]
[1751729508260,0.93497158,108290.0,108280.0,0.4091112]
[1751729508704,0.93407347,108290.0,108280.0,0.4091112]
[1751729509759,0.93407347,108290.0,108280.0,0.39987649]
[1751729510758,0.93407347,108290.0,108280.0,0.4091112]
[1751729512157,0.93407415,108290.0,108280.0,0.39987649]
[1751729513696,0.59932314,108290.0,108280.0,0.39987649]
[1751729513894,0.92483978,108290.0,108280.0,0.4091112]
[1751729514251,0.92483978,108290.0,108280.0,0.39987649]
[1751729514988,0.93407415,108290.0,108280.0,0.39987649]
[1751729515199,0.93407415,108290.0,108280.0,0.4091112]
[1751729515476,0.93407415,108290.0,108280.0,0.39987649]
[1751729516634,0.93407415,108290.0,108280.0,0.39987657]
[1751729517336,0.93407483,108290.0,108280.0,0.39987657]
[1751729517574,1.29505014,108290.0,108280.0,0.33635932]
[1751729517781,1.29505014,108290.0,108280.0,0.34559429]
[1751729520550,1.10112642,108290.0,108280.0,0.34559429]
[1751729522281,1.10112642,108290.0,108280.0,0.35482917]
[1751729522497,1.11036088,108290.0,108280.0,0.35482917]
[1751729523045,1.10112642,108290.0,108280.0,0.40436869]
[1751729523527,1.10112642,108290.0,108280.0,0.34559429]
[1751729528033,1.10112642,108290.0,108280.0,0.33635932]
[1751729528297,1.10112642,108290.0,108280.0,0.34559429]
[1751729529990,1.10112642,108290.0,108280.0,0.33635932]
[1751729531774,1.28581568,108290.0,108280.0,0.33635932]
[1751729532197,1.28581568,108290.0,108280.0,0.33635941]
[1751729532881,1.28581568,108290.0,108280.0,0.34559446]
[1751729534175,2.28581568,108290.0,108280.0,0.34559446]
[1751729534379,2.34125272,108290.0,108280.0,0.33635941]
[1751729534803,2.34125272,108290.0,108280.0,0.30865373]
[1751729535654,2.15656346,108290.0,108280.0,0.32712401]
[1751729536073,2.15656346,108290.0,108280.0,0.3271241]
[1751729537709,2.15656346,108290.0,108280.0,0.33635915]
[1751729537924,2.15656346,108290.0,108280.0,0.3271241]
[1751729539120,2.01573608,108290.0,108280.0,0.31788896]
[1751729539330,2.34125272,108290.0,108280.0,0.3271241]
[1751729539735,2.34125272,108290.0,108280.0,0.31788896]
[1751729539956,2.34125272,108290.0,108280.0,0.32712427]
[1751729540519,2.34125272,108290.0,108280.0,0.33635941]
[1751729540914,2.34125272,108290.0,108280.0,0.31162427]
[1751729541761,2.34125272,108290.0,108280.0,0.32085941]
[1751729542200,2.34125272,108290.0,108280.0,0.31162427]
[1751729542416,2.65753524,108290.0,108280.0,0.29315373]
[1751729542654,2.65753524,108290.0,108280.0,0.27775373]
[1751729547179,2.68010095,108290.0,108280.0,0.00161049]
[1751729549028,2.66420095,108290.0,108280.0,0.00161049]
[1751729550554,2.64830095,108290.0,108280.0,0.1863168]
[1751729551104,2.66420095,108290.0,108280.0,0.1863168]
[1751729552541,2.66420095,108290.0,108280.0,0.00161049]
[1751729554170,2.64830095,108290.0,108280.0,0.00161049]
[1751729554785,2.66420095,108290.0,108280.0,0.00161049]
[1751729556669,2.64830095,108290.0,108280.0,0.00161049]
[1751729557499,2.66410095,108290.0,108280.0,0.00161049]
[1751729560342,2.66410095,108290.0,108280.0,0.1863168]
[1751729562843,2.64830095,108290.0,108280.0,0.1863168]
[1751729569275,2.64830095,108290.0,108280.0,0.1813168]
[1751729570253,2.64830095,108290.0,108280.0,0.1814168]
[1751729581839,2.32278431,108290.0,108280.0,0.1814168]
[1751729582045,2.64830095,108290.0,108280.0,0.1814168]
[1751729585118,2.64830095,108290.0,108280.0,0.19065211]
[1751729585329,2.64830095,108290.0,108280.0,0.1814168]
[1751729586208,2.64832332,108290.0,108280.0,0.1814168]
[1751729596606,2.32280668,108290.0,108280.0,0.1814168]
[1751729610392,2.64832332,108290.0,108280.0,0.1814168]
[1751729612593,2.64832332,108290.0,108280.0,0.19065211]
[1751729612804,2.64832332,108290.0,108280.0,0.1814168]
[1751729613727,2.32280668,108290.0,108280.0,0.1814168]
[1751729614266,2.32280668,108290.0,108280.0,0.19065211]
[1751729614507,2.32280668,108290.0,108280.0,0.1814168]
[1751729615019,2.32280668,108290.0,108280.0,0.19065211]
[1751729615217,2.32280668,108290.0,108280.0,0.1814168]
[1751729615836,2.26736964,108290.0,108280.0,0.1814168]
[1751729616517,2.2442503,108290.0,108280.0,0.1814168]
[1751729616740,2.28583779,108290.0,108280.0,0.1814168]
[1751729622308,2.28583779,108290.0,108280.0,0.19065211]
[1751729622516,2.28583779,108290.0,108280.0,0.1814168]
[1751729632592,2.61135443,108290.0,108280.0,0.1814168]
[1751729633197,2.28583779,108290.0,108280.0,0.1814168]
[1751729633852,2.61135443,108290.0,108280.0,0.1814168]
[1751729634054,2.28583779,108290.0,108280.0,0.1814168]
[1751729634662,2.6021204,108290.0,108280.0,0.1814168]
[1751729635734,2.27660376,108290.0,108280.0,0.1814168]
[1751729636873,2.6021204,108290.0,108280.0,0.1814168]
[1751729643063,1.95108712,108290.0,108280.0,0.1814168]
[1751729643273,2.6021204,108290.0,108280.0,0.1814168]
[1751729643985,2.27660376,108290.0,108280.0,0.1814168]
[1751729644898,2.27660376,108290.0,108280.0,0.19065211]
[1751729645119,2.27660376,108290.0,108280.0,0.1814168]
[1751729649791,2.27660376,108290.0,108280.0,0.19065211]
[1751729649994,2.27660376,108290.0,108280.0,0.1814168]
[1751729650580,2.27660376,108290.0,108280.0,0.19065211]
[1751729650934,2.27660376,108290.0,108280.0,0.1814168]
[1751729656386,2.26736964,108290.0,108280.0,0.1814168]
[1751729656992,2.59288628,108290.0,108280.0,0.1814168]
[1751729661939,2.62488628,108290.0,108280.0,0.18480631]
[1751729662579,2.61565191,108290.0,108280.0,0.18480631]
[1751729665690,2.59945191,108290.0,108280.0,0.18480631]
[1751729667317,2.58365191,108290.0,108280.0,0.18480631]
[1751729672686,2.59995191,108290.0,108280.0,0.18480631]
[1751729673910,2.58365191,108290.0,108280.0,0.18480631]
[1751729676124,2.58365191,108290.0,108280.0,0.18480631]
[1751729686586,2.25813527,108290.0,108280.0,0.18480631]
[1751729692218,2.25813527,108290.0,108280.0,0.0001]
[1751729693447,2.58365191,108290.0,108280.0,0.0001]
[1751729694248,2.58365191,108290.0,108280.0,0.18480631]
[1751729695914,2.25813527,108290.0,108280.0,0.18480631]
[1751729697143,2.25813527,108290.0,108280.0,0.0001]
[1751729698860,2.58365191,108290.0,108280.0,0.0001]
[1751729700298,2.61605191,108290.0,108280.0,0.0001]
[1751729700519,2.67148895,108290.0,108280.0,0.0001]
[1751729725485,2.65488895,108290.0,108280.0,0.0001]
[1751729733805,3.00082529,108290.0,108280.0,0.0001]
[1751729734957,3.00182529,108290.0,108280.0,0.0001]
[1751729735891,3.00282529,108290.0,108280.0,0.0001]
[1751729742658,2.98662529,108290.0,108280.0,0.0001]
[1751729755967,3.06975841,108290.0,108280.0,0.0001]
[1751729761282,2.41872513,108290.0,108280.0,0.0001]
[1751729761603,3.02263458,108290.0,108280.0,0.0001]
[1751729767870,3.02261784,108290.0,108280.0,0.0001]
[1751729787557,3.02261784,108290.0,108280.0,0.0159]
[1751729787558,3.02285784,108290.0,108280.0,0.0159]
[1751729788203,3.02285784,108290.0,108280.0,0.0311]
[1751729793205,3.05062084,108290.0,108280.0,0.0311]
[1751729794149,2.9951838,108290.0,108280.0,0.0311]
[1751729797463,2.9951838,108290.0,108280.0,0.0159]
[1751729800034,2.8094238,108290.0,108280.0,0.0322]
[1751729800263,2.9951838,108290.0,108280.0,0.0322]
[1751729810327,3.02283688,108290.0,108280.0,0.2416966]
[1751729810540,2.83707688,108290.0,108280.0,0.21690631]
[1751729810731,3.03207125,108290.0,108280.0,0.21690631]
[1751729810933,1.92745517,108290.0,108280.0,0.31780125]
[1751729811142,2.28067373,108290.0,108280.0,0.32703605]
[1751729811342,2.31300268,108290.0,108280.0,0.31780125]
[1751729811571,2.49880268,108290.0,108280.0,0.32703605]
[1751729811770,2.50603688,108290.0,108280.0,0.32703605]
[1751729812001,2.50603688,108290.0,108280.0,0.33627076]
[1751729812179,2.50603688,108290.0,108280.0,0.32803605]
[1751729812552,2.49680268,108290.0,108280.0,0.32803605]
[1751729812762,2.50603688,108290.0,108280.0,0.32803605]
[1751729812967,2.49680268,108290.0,108280.0,0.33727076]
[1751729813433,2.50603688,108290.0,108280.0,0.33727076]
[1751729813655,2.50603688,108290.0,108280.0,0.32803605]
[1751729813836,2.50603688,108290.0,108280.0,0.25484635]
[1751729813991,2.50603688,108290.0,108280.0,0.24561155]
[1751729814779,2.51527125,108290.0,108280.0,0.24561164]
[1751729815379,2.50603688,108290.0,108280.0,0.25484644]
[1751729815597,2.50603688,108290.0,108280.0,0.24561164]
[1751729815792,2.51527125,108290.0,108280.0,0.25484652]
[1751729815974,2.50603688,108290.0,108280.0,0.25484652]
[1751729816177,2.50603697,108290.0,108280.0,0.26408132]
[1751729816336,2.50603688,108290.0,108280.0,0.26408132]
[1751729816534,2.50603688,108290.0,108280.0,0.26408072]
[1751729816736,2.50603688,108290.0,108280.0,0.25484601]
[1751729817142,2.49680268,108290.0,108280.0,0.26408072]
[1751729817849,2.5060368,108290.0,108280.0,0.26408072]
[1751729818020,2.5060368,108290.0,108280.0,0.25484601]
[1751729819343,2.515271,108290.0,108280.0,0.25484601]